bitfinex/quotes_ETHUSD_20240925
["timestamp","ask_amount","ask_price","bid_price","bid_amount"]
[1727235325921,7.55192,2648.4,2647.9,0.8156]
[1727235326122,3.77612,2648.3,2647.9,0.8156]
[1727235326653,3.77616,2648.2,2647.9,0.8156]
[1727235327666,3.77602,2648.3,2647.9,0.8156]
[1727235333358,3.77595,2648.4,2647.9,0.8156]
[1727235333558,3.77595,2648.4,2647.9,4.59216]
[1727235333869,3.77595,2648.4,2648.0,0.82]
[1727235334220,3.77601,2648.3,2648.0,0.82]
[1727235338969,5.0599148,2648.4,2648.0,0.82]
[1727235339147,3.77629,2648.1,2647.6,3.77699]
[1727235339468,3.77615,2648.2,2647.7,4.59685]
[1727235340236,3.77615,2648.2,2647.7,8.3737]
[1727235340941,5.13564577,2648.2,2647.7,0.82]
[1727235341189,5.0601148,2648.2,2647.7,0.82]
[1727235341480,3.77615,2648.2,2647.7,0.82]
[1727235341844,3.77615,2648.2,2647.8,0.82]
[1727235342133,3.77595,2648.4,2647.9,4.59649]
[1727235342348,3.77601,2648.3,2647.9,0.82]
[1727235346777,3.77587,2648.4,2647.9,4.59651]
[1727235347070,3.77587,2648.4,2647.9,0.82]
[1727235347676,3.77582,2648.5,2647.9,4.59646]
[1727235347870,3.77595,2648.4,2647.9,4.59646]
[1727235349276,3.77608,2648.3,2647.9,0.82]
[1727235353634,3.77629,2648.1,2647.9,0.82]
[1727235358138,3.77617,2648.2,2647.9,0.82]
[1727235358347,3.77629,2648.1,2647.9,0.82]
[1727235359719,3.77643,2648.0,2647.7,0.8327]
[1727235360150,3.77629,2648.1,2647.7,0.8327]
[1727235360713,3.77615,2648.2,2647.8,0.90508217]
[1727235360924,5.0600648,2648.3,2647.8,0.90508217]
[1727235360925,7.5522,2648.3,2647.8,0.7708]
[1727235361112,3.7761,2648.3,2647.8,4.54747]
[1727235361339,7.55223,2648.3,2647.9,0.90535456]
[1727235361696,7.55223,2648.3,2647.8,0.7708]
[1727235361989,3.77617,2648.2,2647.8,0.7708]
[1727235362159,3.7761,2648.3,2647.9,0.90537434]
[1727235362367,3.7761,2648.3,2647.8,5.33951989]
[1727235362597,3.7761,2648.3,2647.9,0.90546349]
[1727235362742,3.77609,2648.3,2647.8,4.5475]
[1727235363097,3.77609,2648.3,2647.9,2.2636445]
[1727235363399,3.77581,2648.5,2648.0,1.67623871]
[1727235363545,6.77523,2648.9,2648.1,1.67621728]
[1727235363744,2.7613294,2649.2,2648.5,0.7708]
[1727235363745,3.77492,2649.1,2648.5,0.7708]
[1727235363949,6.95530352,2649.3,2648.5,0.7708]
[1727235364147,3.77537,2648.8,2648.5,0.7708]
[1727235364378,0.8105,2648.9,2648.5,0.7708]
[1727235364555,4.58576,2648.9,2648.5,0.7708]
[1727235364755,3.77531,2648.8,2648.5,0.7708]
[1727235365379,7.55072,2648.8,2648.5,0.7708]
[1727235365579,3.77531,2648.8,2648.5,0.7708]
[1727235369482,3.77509,2649.0,2648.5,3.77566]
[1727235369677,3.77509,2649.0,2648.6,0.7708]
[1727235369879,7.5496,2649.2,2648.7,0.7708]
[1727235370083,3.77451,2649.4,2648.8,0.7708]
[1727235370401,3.7746,2649.3,2648.8,3.77526]
[1727235370606,3.77438,2649.5,2648.9,0.7708]
[1727235370775,3.77444,2649.4,2649.0,0.7708]
[1727235371290,3.7747,2649.3,2649.0,0.7708]
[1727235371483,5.0588048,2649.2,2649.0,0.7708]
[1727235371679,5.0587748,2649.2,2649.0,0.7708]
[1727235372531,8.8335948,2649.2,2649.0,0.7708]
[1727235372702,5.0587748,2649.2,2649.0,0.7708]
[1727235373584,1.2839648,2649.2,2648.3,5.9253267]
[1727235373799,3.77506,2649.0,2648.4,8.45154116]
[1727235374126,3.77506,2649.0,2648.5,0.7708]
[1727235374127,1.2839648,2649.0,2648.5,0.7708]
[1727235374284,7.54984,2649.1,2648.5,0.7708]
[1727235374723,3.77503,2649.0,2648.5,0.7708]
[1727235375093,3.77486,2649.1,2648.5,0.7708]
[1727235375294,7.54986,2649.1,2648.5,0.7708]
[1727235375887,3.77486,2649.1,2648.5,0.7708]
[1727235376293,3.77502,2649.0,2648.5,0.7708]
[1727235377687,7.54981,2649.1,2648.5,0.7708]
[1727235379731,1.2839648,2649.0,2648.5,0.7708]
[1727235380844,0.8105,2649.4,2648.5,0.7708]
[1727235381077,3.77456,2649.4,2648.8,3.77522]
[1727235381195,3.77424,2649.6,2649.0,0.8004]
[1727235381397,3.77454,2649.4,2649.0,0.8004]
[1727235382233,5.0582748,2649.5,2649.0,0.8004]
[1727235382397,3.77411,2649.7,2649.1,0.87589638]
[1727235382593,3.53197219,2650.0,2649.3,3.77456]
[1727235382594,3.77396,2649.8,2649.3,3.77456]
[1727235382799,3.77396,2649.8,2649.3,0.8004]
[1727235383025,3.77376,2649.9,2649.4,0.8004]
[1727235383246,4.12684722,2650.0,2649.4,4.57475]
[1727235384005,4.12684722,2650.0,2649.5,0.8004]
[1727235384509,3.77365,2650.0,2649.5,4.57465]
[1727235384707,3.77365,2650.0,2649.4,3.77433]
[1727235384708,3.77365,2650.0,2649.6,0.8004]
[1727235385399,7.54733,2650.0,2649.6,0.8004]
[1727235385602,3.77365,2650.0,2649.6,0.8004]
[1727235386135,6.55292219,2650.1,2649.6,0.8004]
[1727235386547,3.77338,2650.2,2649.6,4.57454]
[1727235386836,3.77338,2650.2,2649.7,0.8004]
[1727235387055,3.77315,2650.3,2649.8,0.8004]
[1727235387228,3.77305,2650.4,2649.8,0.8004]
[1727235387229,3.7733,2650.2,2649.8,0.8004]
[1727235390035,3.77352,2650.1,2649.8,0.8004]
[1727235390344,0.07553097,2650.0,2649.8,0.8004]
[1727235390646,3.77372,2649.9,2649.8,0.8004]
[1727235393022,3.77393,2649.8,2649.3,0.7972]
[1727235393223,6.55319219,2649.9,2649.3,0.7972]
[1727235393552,3.77389,2649.8,2649.3,0.7972]
[1727235393953,10.32701219,2649.9,2649.3,3.77454]
[1727235394151,7.54754,2649.9,2649.4,0.7972]
[1727235394356,3.77372,2649.9,2649.4,0.7972]
[1727235394662,7.54755,2649.9,2649.4,0.7972]
[1727235394950,3.7736,2650.0,2649.6,0.7972]
[1727235395169,3.77352,2650.1,2649.6,0.7972]
[1727235396318,6.77322,2650.3,2649.7,0.7972]
[1727235396546,3.77322,2650.3,2649.7,0.7972]
[1727235396775,3.7733,2650.2,2649.7,0.7972]
[1727235397593,3.7733,2650.2,2649.7,4.5712]
[1727235397744,3.7733,2650.2,2649.8,0.7972]
[1727235398085,0.0386997,2650.6,2650.0,0.7972]
[1727235398244,3.77289,2650.5,2650.0,0.7972]
[1727235398440,3.77316,2650.3,2650.0,0.7972]
[1727235399156,3.7733,2650.2,2650.0,0.7972]
[1727235399894,6.55263219,2650.3,2650.0,0.7972]
[1727235400177,3.77316,2650.3,2650.0,0.7972]
[1727235400384,3.77331,2650.2,2650.0,0.7972]
[1727235400583,3.77344,2650.1,2650.0,0.7972]
[1727235407947,3.77316,2650.3,2650.0,0.7972]
[1727235408086,7.54645,2650.3,2650.0,0.7972]
[1727235408281,3.77334,2650.2,2650.0,0.7972]
[1727235408485,3.77316,2650.3,2650.0,0.7972]
[1727235409602,5.05498672,2650.5,2650.0,0.7972]
[1727235409924,7.54586,2650.5,2650.0,0.87266371]
[1727235410127,3.77289,2650.5,2650.0,0.87266371]
[1727235411231,3.77316,2650.3,2650.0,0.7972]
[1727235412323,3.77302,2650.4,2650.0,0.7972]
[1727235413490,0.0386997,2650.6,2650.1,3.84889373]
[1727235413810,3.8114297,2650.6,2650.2,0.7789]
[1727235414045,0.0386997,2650.6,2650.3,0.7789]
[1727235414555,0.0386997,2650.6,2650.3,4.55204]
[1727235415425,0.0386997,2650.6,2650.3,0.7789]
[1727235418674,0.0386997,2650.6,2650.3,4.55202]
[1727235419474,0.0386997,2650.6,2650.5,0.7789]
[1727235419836,0.0386997,2650.6,2650.5,4.55177]
[1727235420492,0.0386997,2650.6,2650.5,0.7789]
[1727235420686,0.0386997,2650.6,2650.5,0.85434391]
[1727235420848,0.0386997,2650.6,2650.5,0.7789]
[1727235421382,0.0386997,2650.6,2650.5,4.55177]
[1727235421633,0.0386997,2650.6,2650.5,4.62716878]
[1727235422779,0.0386997,2650.6,2650.5,4.55177]
[1727235423845,0.0386997,2650.6,2650.5,4.62721397]
[1727235424052,0.0386997,2650.6,2650.5,5.17721397]
[1727235425072,0.0386997,2651.4,2650.9,3.77219]
[1727235425241,0.0386997,2651.4,2651.0,3.84748933]
[1727235425454,0.0386997,2651.4,2651.1,0.772]
[1727235425651,3.8102997,2651.4,2651.1,0.772]
[1727235425978,3.8102997,2651.4,2650.8,0.772]
[1727235425979,5.09239642,2651.4,2650.8,0.772]
[1727235426450,5.09239642,2651.4,2650.9,3.84773654]
[1727235426851,3.77178,2651.3,2650.8,0.772]
[1727235427253,1.28209672,2651.2,2650.8,0.772]
[1727235427592,5.05400672,2651.2,2650.8,0.772]
[1727235427767,3.77202,2651.1,2650.8,0.772]
[1727235428171,3.77178,2651.3,2650.8,0.772]
[1727235428576,5.05399672,2651.2,2650.8,0.772]
[1727235429184,1.28209672,2651.2,2650.8,0.772]
[1727235429380,5.05398672,2651.2,2650.8,0.772]
[1727235429769,1.28209672,2651.2,2650.8,0.772]
[1727235430403,5.05405672,2651.2,2650.8,0.772]
[1727235430708,3.77183,2651.3,2650.8,0.772]
[1727235430911,5.09246642,2651.4,2650.8,0.84744028]
[1727235431401,5.09246642,2651.4,2650.9,4.54428]
[1727235432114,1.28209672,2651.2,2650.8,3.77235]
[1727235432310,1.32079642,2651.4,2650.8,3.84778915]
[1727235432610,1.32079642,2651.4,2650.9,4.54429]
[1727235432921,0.0386997,2651.4,2651.0,3.77214]
[1727235433122,0.0386997,2651.4,2651.1,3.84743903]
[1727235434171,0.0386997,2651.4,2651.2,3.77187]
[1727235434280,0.0386997,2651.4,2651.0,1.28209672]
[1727235434281,0.0386997,2651.4,2651.3,0.84742552]
[1727235435016,0.0386997,2651.4,2651.3,0.772]
[1727235436624,0.0386997,2651.4,2651.1,0.7672]
[1727235436839,3.8102897,2651.4,2651.1,0.7672]
[1727235437604,0.0386997,2651.4,2651.1,0.7672]
[1727235438930,3.8103397,2651.4,2651.1,0.7672]
[1727235442038,3.77176,2651.3,2651.1,0.7672]
[1727235442414,3.77176,2651.3,2650.7,3.7725]
[1727235442415,3.77176,2651.3,2650.9,0.7672]
[1727235443310,0.0386997,2651.4,2650.9,4.53948]
[1727235443507,3.8102897,2651.4,2650.9,4.53948]
[1727235443944,3.8102897,2651.4,2650.9,0.7672]
[1727235444147,3.77184,2651.3,2650.9,0.7672]
[1727235444507,7.3651515,2651.2,2650.7,0.7672]
[1727235444712,7.3651515,2651.2,2650.7,4.53978]
[1727235444713,3.77195,2651.2,2650.7,4.53978]
[1727235445529,7.54391,2651.2,2650.7,4.53978]
[1727235445845,3.7721,2651.1,2650.7,0.7672]
[1727235448252,3.77194,2651.2,2650.7,4.53975]
[1727235448749,3.77194,2651.2,2650.7,0.7672]
[1727235449051,3.77217,2651.0,2650.7,0.7672]
[1727235451654,3.77195,2651.2,2650.7,0.7672]
[1727235451821,3.77202,2651.1,2650.7,0.7672]
[1727235452150,3.77173,2651.3,2650.8,3.77242]
[1727235452856,3.77189,2651.2,2650.7,4.53977]
[1727235453056,8.4002097,2651.4,2650.8,3.77244]
[1727235453651,4.6284797,2651.4,2650.8,3.77244]
[1727235453827,3.77176,2651.3,2650.8,3.77244]
[1727235456421,5.05281457,2651.3,2650.8,3.77244]
[1727235457659,3.77188,2651.2,2650.7,4.53975]
[1727235457965,3.77188,2651.2,2650.7,4.6151881]
[1727235458330,5.05282457,2651.3,2650.8,3.77242]
[1727235459761,0.0386997,2651.4,2650.9,0.7562]
[1727235459972,0.0386997,2651.4,2651.1,3.77194]
[1727235460161,0.0386997,2651.4,2651.0,8.09418]
[1727235460317,0.0386997,2651.4,2651.0,8.09417]
[1727235460767,0.0386997,2651.4,2651.0,8.09415]
[1727235460959,0.0386997,2651.4,2651.2,0.7562]
[1727235462259,4.57072,2651.3,2650.7,0.7562]
[1727235462563,1.28105457,2651.2,2650.7,8.30121]
[1727235462768,1.28105457,2651.2,2650.8,3.77235]
[1727235463546,3.77175,2651.3,2650.8,3.77235]
[1727235463777,1.31975427,2651.4,2651.0,0.7562]
[1727235463778,0.0386997,2651.4,2651.0,0.7562]
[1727235464081,0.0386997,2651.4,2651.0,4.52832]
[1727235464235,0.0386997,2651.4,2651.0,9.65816988]
[1727235464666,0.0386997,2651.4,2651.0,0.7562]
[1727235464853,3.8102897,2651.4,2651.0,0.7562]
[1727235465389,1.28105457,2651.1,2650.8,0.7562]
[1727235465706,5.05287457,2651.3,2650.9,0.07544214]
[1727235465979,3.77182,2651.3,2650.9,0.07544214]
[1727235466183,3.8102897,2651.4,2650.9,3.84773214]
[1727235466977,5.05280457,2651.3,2650.9,0.07544214]
[1727235469481,3.77196,2651.2,2650.8,0.7562]
[1727235469649,3.77196,2651.2,2650.9,0.90578117]
[1727235469855,3.77196,2651.2,2650.8,0.7562]
[1727235471345,3.77196,2651.2,2650.9,0.90580841]
[1727235471547,3.77196,2651.2,2650.8,0.7562]
[1727235471790,3.77196,2651.2,2650.9,0.90580249]
[1727235471971,0.0386997,2651.4,2651.0,0.7696]
[1727235472194,0.0386997,2651.4,2651.3,6.27935984]
[1727235472487,0.8659997,2652.2,2651.8,3.77095]
[1727235472488,0.0386997,2652.2,2651.8,3.77095]
[1727235472644,5.09022427,2652.2,2651.9,0.7696]
[1727235472846,1.31975427,2652.2,2651.9,0.7696]
[1727235473385,5.09029427,2652.2,2651.7,4.61616169]
[1727235473569,5.09029427,2652.2,2651.7,5.97310645]
[1727235473770,1.31975427,2652.2,2651.7,0.84501169]
[1727235473995,3.7706,2652.1,2651.7,0.7696]
[1727235475087,2.81264362,2652.2,2651.7,0.7696]
[1727235475271,6.58314362,2652.2,2651.7,4.54075]
[1727235475657,3.77068,2652.1,2651.7,0.7696]
[1727235475958,3.77074,2652.0,2651.7,0.7696]
[1727235476164,2.84947489,2651.9,2651.4,1.35611606]
[1727235476494,6.54523392,2651.7,2651.6,0.61913127]
[1727235476649,6.54523392,2651.7,2651.3,0.7696]
[1727235476851,3.7711,2651.8,2651.5,0.38697985]
[1727235477051,3.7711,2651.8,2651.4,0.38697985]
[1727235477252,3.7711,2651.8,2651.3,0.84502827]
[1727235477487,3.7711,2651.8,2651.4,0.38690808]
[1727235477682,3.7711,2651.8,2651.5,0.38690808]
[1727235477889,3.7711,2651.8,2651.3,0.84502281]
[1727235478112,3.7711,2651.8,2651.4,0.38689831]
[1727235478312,3.7711,2651.8,2651.5,0.38689831]
[1727235478616,3.7711,2651.8,2651.3,0.84502281]
[1727235479136,3.7711,2651.8,2651.4,0.38686617]
[1727235479418,3.7711,2651.8,2651.5,0.38686617]
[1727235479619,3.7711,2651.8,2651.3,0.84502281]
[1727235479782,3.7711,2651.8,2651.4,0.3868174]
[1727235479981,3.7711,2651.8,2651.5,0.3868174]
[1727235480211,3.77125,2651.7,2651.3,0.7696]
[1727235480422,3.77125,2651.7,2651.0,6.6932803]
[1727235480423,0.8273,2651.6,2651.1,0.7696]
[1727235480583,0.8273,2651.6,2651.2,0.38686367]
[1727235480584,3.77153,2651.5,2651.2,0.38686367]
[1727235480787,3.77153,2651.5,2651.1,0.7696]
[1727235480995,3.77153,2651.5,2651.2,0.38686165]
[1727235481326,3.77153,2651.5,2650.9,3.8476928]
[1727235481327,6.54539392,2651.5,2650.9,0.78]
[1727235481492,3.77177,2651.3,2651.0,0.386881]
[1727235481859,6.54539392,2651.5,2651.1,0.386881]
[1727235482019,3.77145,2651.5,2650.9,4.55229]
[1727235482180,3.77145,2651.5,2651.0,0.38688572]
[1727235482381,3.77145,2651.5,2651.1,0.38688572]
[1727235482382,6.54539392,2651.5,2651.1,0.38688572]
[1727235482614,3.7718,2651.3,2650.9,0.78]
[1727235482821,3.7718,2651.3,2651.0,0.38688756]
[1727235482977,3.77199,2651.2,2650.9,0.78]
[1727235483618,3.77174,2651.3,2651.0,0.3868868]
[1727235483782,3.77174,2651.3,2650.9,0.78]
[1727235483980,3.77174,2651.3,2651.0,0.38688596]
[1727235484209,3.77174,2651.3,2650.9,0.78]
[1727235484406,3.77174,2651.3,2650.7,5.20392889]
[1727235484407,3.77201,2651.1,2651.0,0.38688454]
[1727235484608,2.77394392,2651.1,2650.5,0.78]
[1727235484926,3.77224,2651.0,2650.5,0.78]
[1727235485836,0.7597,2651.2,2650.6,3.77261]
[1727235485988,3.77202,2651.1,2650.7,0.07544082]
[1727235486188,0.7597,2651.2,2650.7,3.77257]
[1727235486598,7.54356,2651.3,2650.8,0.78]
[1727235486799,3.77175,2651.3,2650.8,0.78]
[1727235487030,3.77188,2651.2,2650.8,0.78]
[1727235487232,7.54357,2651.3,2650.8,0.78]
[1727235487414,3.77175,2651.3,2650.8,4.55239]
[1727235487627,7.54362,2651.3,2650.8,0.78]
[1727235487789,3.77175,2651.3,2650.8,0.78]
[1727235488192,3.77175,2651.3,2650.8,0.85544047]
[1727235488424,3.77175,2651.3,2650.8,0.78]
[1727235489195,3.77188,2651.2,2650.8,0.78]
[1727235491138,3.53364392,2651.4,2650.8,0.78]
[1727235491340,3.77173,2651.3,2650.8,4.62773678]
[1727235491502,0.7597,2651.4,2650.9,3.77229]
[1727235491904,3.7715,2651.5,2650.9,3.77229]
[1727235492339,6.53364392,2651.6,2650.9,3.77229]
[1727235492518,3.77153,2651.5,2651.0,0.78]
[1727235493819,3.77173,2651.3,2651.0,0.78]
[1727235498535,7.54358,2651.3,2651.0,0.78]
[1727235498753,3.77192,2651.2,2650.7,4.53608]
[1727235499061,3.77182,2651.3,2650.8,0.7635]
[1727235499234,7.54363,2651.3,2650.8,0.7635]
[1727235499616,3.77181,2651.3,2650.8,0.7635]
[1727235499848,3.77189,2651.2,2650.8,0.7635]
[1727235500365,7.54364,2651.3,2650.8,0.7635]
[1727235502048,3.7719,2651.2,2650.8,0.7635]
[1727235502649,2.77394392,2651.0,2650.6,1.35626281]
[1727235502829,3.77244,2650.8,2650.5,2.31116962]
[1727235503445,3.77244,2650.8,2650.5,1.53724163]
[1727235504172,3.7723,2650.9,2650.5,1.53724163]
[1727235504478,0.781,2651.2,2650.5,0.7635]
[1727235504479,3.77273,2650.6,2650.5,0.7635]
[1727235504661,3.77287,2650.5,2650.4,7.27]
[1727235504850,3.77301,2650.4,2650.1,2.1196971]
[1727235505053,3.77234,2650.9,2650.3,3.77314]
[1727235505237,3.7721,2651.1,2650.5,0.7635]
[1727235505571,10.31819392,2651.1,2650.5,0.7635]
[1727235505781,3.77221,2651.0,2650.5,0.7635]
[1727235506543,5.05365476,2650.9,2650.5,0.7635]
[1727235507131,8.82605476,2650.9,2650.5,0.7635]
[1727235507371,1.28134476,2650.7,2650.5,0.7635]
[1727235507964,5.05395476,2650.7,2650.5,0.7635]
[1727235510446,3.77261,2650.7,2650.2,0.7635]
[1727235511068,3.77287,2650.5,2650.2,0.7635]
[1727235511264,3.77302,2650.4,2650.2,0.7635]
[1727235511582,3.77315,2650.3,2650.2,0.7635]
[1727235511765,3.77315,2650.3,2650.0,1.52783492]
[1727235512579,3.77287,2650.5,2650.0,1.52783492]
[1727235513466,3.77302,2650.4,2650.0,1.52783492]
[1727235514458,3.77302,2650.4,2650.0,0.7541]
[1727235515790,3.77287,2650.5,2650.0,0.7541]
[1727235516088,3.77344,2650.1,2650.0,0.7541]
[1727235516295,3.77359,2650.0,2649.8,0.7541]
[1727235516455,2.77687001,2650.1,2649.8,0.7541]
[1727235517557,6.55033001,2650.1,2649.8,0.7541]
[1727235518397,3.77346,2650.1,2649.8,0.7541]
[1727235519952,3.77359,2650.0,2649.8,0.7541]
[1727235520585,8.33863,2650.2,2649.8,0.7541]
[1727235520953,4.5652,2650.2,2649.8,0.7541]
[1727235521153,8.33861,2650.2,2649.8,0.7541]
[1727235521666,3.77347,2650.1,2649.8,0.7541]
[1727235521869,4.5652,2650.2,2649.8,0.7541]
[1727235521870,3.7733,2650.2,2649.8,0.7541]
[1727235522086,3.7731,2650.4,2649.9,3.77365]
[1727235522289,3.7731,2650.4,2650.0,0.7541]
[1727235524763,3.77288,2650.5,2650.0,4.60312314]
[1727235524989,3.77288,2650.5,2650.0,0.7541]
[1727235525576,3.77302,2650.4,2650.0,0.7541]
[1727235527703,3.77302,2650.4,2650.0,4.52768]
[1727235528603,3.77302,2650.4,2650.0,4.6031432]
[1727235528902,3.77302,2650.4,2650.0,0.8295632]
[1727235529106,3.77287,2650.5,2650.0,0.8295632]
[1727235529268,10.33207001,2650.9,2650.2,0.7555]
[1727235529465,3.77267,2650.7,2650.2,0.7555]
[1727235529665,7.54534,2650.7,2650.2,0.7555]
[1727235529918,0.7828,2650.6,2650.1,0.07545891]
[1727235530202,3.77337,2650.2,2649.7,0.7555]
[1727235530378,3.77337,2650.2,2649.7,4.52947]
[1727235531417,3.77337,2650.2,2649.7,0.7555]
[1727235532123,3.77347,2650.1,2649.7,0.7555]
[1727235532780,7.54703,2650.1,2649.7,0.7555]
[1727235533127,6.55067001,2649.9,2649.6,7.27]
[1727235533335,6.55067001,2649.9,2649.5,0.7555]
[1727235533485,3.77392,2649.8,2649.5,0.7555]
[1727235536327,6.55067001,2649.9,2649.5,0.7555]
[1727235537190,10.32448001,2649.9,2649.5,0.7555]
[1727235537391,10.32450001,2649.9,2649.5,0.7555]
[1727235537716,6.55067001,2649.9,2649.5,0.7555]
[1727235538329,3.7738,2649.9,2649.5,0.7555]
[1727235540263,3.77387,2649.8,2649.5,0.7555]
[1727235540760,3.7738,2649.9,2649.5,0.7555]
[1727235541535,3.77412,2649.7,2649.2,0.7739]
[1727235541977,3.77418,2649.6,2649.2,0.7739]
[1727235543726,7.54825,2649.7,2649.2,0.7739]
[1727235543930,3.77417,2649.6,2649.2,0.7739]
[1727235544789,3.77412,2649.7,2649.2,0.7739]
[1727235544990,7.54824,2649.7,2649.2,0.7739]
[1727235545203,3.77412,2649.7,2649.2,0.7739]
[1727235545414,7.54822,2649.7,2649.2,0.7739]
[1727235545624,3.77417,2649.6,2649.2,0.7739]
[1727235546655,3.77434,2649.5,2649.2,0.7739]
[1727235546991,3.77419,2649.6,2649.2,0.7739]
[1727235547656,3.7743,2649.5,2649.2,0.7739]
[1727235547827,6.55117001,2649.5,2649.0,0.8125997]
[1727235549044,6.55117001,2649.5,2649.0,4.5875897]
[1727235549477,3.7743,2649.5,2649.0,4.5875897]
[1727235549750,3.7743,2649.5,2649.1,3.77485]
[1727235551312,3.77415,2649.6,2649.1,3.77485]
[1727235551532,6.55097001,2649.7,2649.1,7.54963]
[1727235551757,3.7741,2649.7,2649.3,0.7739]
[1727235551970,3.77409,2649.7,2649.3,0.7739]
[1727235552252,7.54819,2649.7,2649.3,0.7739]
[1727235552750,7.5482,2649.7,2649.3,0.7739]
[1727235553047,6.55096001,2649.7,2649.3,0.7739]
[1727235553238,3.77416,2649.6,2649.3,0.7739]
[1727235553417,10.32507001,2649.7,2649.3,0.7739]
[1727235554317,3.77415,2649.6,2649.3,0.7739]
[1727235555423,6.55070001,2649.9,2649.3,0.7739]
[1727235555758,3.77388,2649.8,2649.3,4.5484]
[1727235560315,1.28258526,2649.7,2649.3,4.5484]
[1727235562271,5.05659526,2649.7,2649.3,4.5484]
[1727235563166,3.77383,2649.9,2649.3,4.5484]
[1727235563379,5.05641526,2649.9,2649.4,0.757]
[1727235563675,5.05641526,2649.9,2649.4,4.53141]
[1727235564046,5.05640526,2649.9,2649.4,0.757]
[1727235564265,5.05640526,2649.9,2649.4,4.53143]
[1727235567070,8.83022526,2649.9,2649.4,0.757]
[1727235567262,5.05640526,2649.9,2649.4,4.53143]
[1727235567441,5.05640526,2649.9,2649.4,0.757]
[1727235567952,8.83021526,2649.9,2649.4,0.757]
[1727235568162,5.05639526,2649.9,2649.4,0.757]
[1727235568642,8.83019526,2649.9,2649.4,0.757]
[1727235568843,5.05638526,2649.9,2649.4,0.757]
[1727235569858,1.28258526,2649.7,2649.4,0.757]
[1727235571984,5.05662526,2649.7,2649.4,0.757]
[1727235572189,1.28258526,2649.5,2649.4,0.757]
[1727235572489,1.28258526,2649.5,2649.2,1.38934789]
[1727235572678,1.28258526,2649.5,2649.2,0.8543655]
[1727235573587,1.28258526,2649.5,2649.2,2.21454789]
[1727235574790,1.28258526,2649.5,2649.3,0.9076264]
[1727235574970,1.28258526,2649.5,2649.2,0.8543655]
[1727235575173,1.28258526,2649.5,2649.2,2.21582204]
[1727235575370,1.28258526,2649.5,2649.2,0.8543655]
[1727235575573,1.28258526,2649.5,2649.3,0.90802801]
[1727235575911,3.77416,2649.6,2649.3,1.3620502]
[1727235576079,3.77416,2649.6,2649.2,4.6290755]
[1727235576254,3.77416,2649.6,2649.3,2.27003543]
[1727235576455,3.77416,2649.6,2649.2,5.42070487]
[1727235576669,1.28258526,2649.7,2649.3,2.27040045]
[1727235576879,1.28258526,2649.7,2649.4,2.27034496]
[1727235577057,1.28258526,2649.7,2649.2,9.19533487]
[1727235577252,1.28258526,2649.7,2649.3,6.0448887]
[1727235577455,1.28258526,2649.7,2649.4,2.2703487]
[1727235577655,1.28258526,2649.7,2649.3,3.77454]
[1727235577857,1.28258526,2649.7,2649.4,2.27072578]
[1727235578056,1.28258526,2649.7,2649.3,3.77454]
[1727235578257,1.28258526,2649.7,2649.4,0.90829455]
[1727235578457,1.28258526,2649.7,2649.3,4.56616937]
[1727235578791,1.28258526,2649.7,2649.4,2.27113102]
[1727235579085,4.52686,2650.0,2649.2,1.64599487]
[1727235579086,1.28258526,2649.5,2649.2,1.64599487]
[1727235579251,1.28258526,2649.5,2649.3,2.27117132]
[1727235579451,1.28258526,2649.5,2649.4,0.90846853]
[1727235579966,1.28258526,2649.5,2649.4,0.90854137]
[1727235580867,3.77423,2649.6,2649.4,0.90854137]
[1727235581067,3.77423,2649.6,2649.2,1.64599487]
[1727235581068,1.28258526,2649.5,2649.2,1.64599487]
[1727235581281,1.28258526,2649.5,2649.3,2.27144343]
[1727235581491,1.28258526,2649.5,2649.4,2.27144085]
[1727235586883,1.28258526,2649.5,2649.4,0.90857737]
[1727235587208,1.28258526,2649.5,2649.2,0.0291655]
[1727235587209,3.7745,2649.4,2649.2,0.0291655]
[1727235587407,1.35811623,2649.3,2649.2,0.0291655]
[1727235587612,5.13269623,2649.3,2649.2,0.9379927]
[1727235588268,3.77458,2649.3,2649.2,0.93800066]
[1727235588469,5.05716526,2649.3,2649.2,0.0291655]
[1727235589305,3.77458,2649.3,2649.2,0.0291655]
[1727235589516,5.05716526,2649.3,2649.2,0.0291655]
[1727235590529,6.02547388,2649.3,2649.2,0.0291655]
[1727235590818,6.10100485,2649.3,2649.2,0.0291655]
[1727235592014,4.74288862,2649.3,2649.2,0.0291655]
[1727235592221,6.02547388,2649.3,2649.2,0.0291655]
[1727235593916,6.10100485,2649.3,2649.2,0.0291655]
[1727235599332,5.13269623,2649.3,2649.2,0.0291655]
[1727235605354,5.05716526,2649.3,2649.2,0.0291655]
[1727235605642,5.13269623,2649.3,2649.2,0.0291655]
[1727235609579,8.94979623,2649.3,2649.2,0.0291655]
[1727235609724,8.87426526,2649.3,2649.2,0.0291655]
[1727235610065,10.13913579,2649.3,2649.2,0.0291655]
[1727235634084,9.32203579,2649.3,2649.2,0.0291655]
[1727235634288,6.77458,2649.3,2649.2,0.0291655]
[1727235634496,8.13269623,2649.3,2649.2,0.0291655]
[1727235634654,8.05716526,2649.3,2649.2,0.0291655]
[1727235635267,8.83366526,2649.3,2649.2,0.0291655]
[1727235635493,10.09447579,2649.3,2649.2,0.0291655]
[1727235638492,9.31797579,2649.3,2649.2,0.0291655]
[1727235645265,10.09447579,2649.3,2649.2,0.0291655]
[1727235646595,9.31797579,2649.3,2649.2,0.0291655]
[1727235660907,8.05716526,2649.3,2649.2,0.0291655]
[1727235664084,6.77458,2649.3,2649.2,0.0291655]
[1727235664320,8.05716526,2649.3,2649.2,0.0291655]
[1727235678043,8.84796526,2649.3,2649.2,0.0291655]
[1727235678610,0.7908,2649.2,2648.5,0.7759]
[1727235678843,5.05815526,2648.6,2648.5,0.7759]
[1727235679249,5.05815526,2648.6,2648.5,1.16403413]
[1727235680121,5.05815526,2648.6,2648.5,0.7759]
[1727235680636,5.05815526,2648.6,2648.5,1.16392481]